Cogmind - Beta 9.4 @@@ ROGUE MODE // 2020.03.05 @ 23:49:13 Player: fastidiots Result: Destroyed by G-34 Mercenary with Small Laser Performance ------------- Evolutions (0) 0 Regions Visited (4) 800 Robots Destroyed (38) 190 Value Destroyed (810) 810 Prototype IDs (1) 20 Alien Tech Used (0) 0 Bonus (360) 360 TOTAL SCORE: 2180 Bonus ------- Follower Combat Kills 60 Aligned with FarCom 300 Cogmind --------- Core Integrity 0/250 Matter 274/300 Energy 80/100 System Corruption 0% Temperature Cool (12) Movement Treading (180) Ox1 Location -9/Mines Parts ------- > --- POWER (1) -------- (None) > --- PROPULSION (2) --- Light Treads > --- UTILITY (2) ------ High-capacity Storage Unit Modified TNC > --- WEAPON (2) ------- Katana > --- INVENTORY (12) --- Ion Engine Light Treads Improved Heat Sink Large Storage Unit High-capacity Storage Unit High-capacity Matter Pod (200) Rocket Launcher Peak State ------------ > --- POWER ------------ Ion Engine > --- PROPULSION ------- Light Treads Wheel > --- UTILITY ---------- High-capacity Storage Unit Modified TNC > --- WEAPON ----------- Spread Laser Rocket Launcher > --- INVENTORY -------- Ion Engine Light Treads Light Treads Wheel Improved Heat Sink Large Storage Unit High-capacity Storage Unit High-capacity Matter Pod EM Pulse Gun EM Pulse Gun Assault Rifle Katana [Rating: 15] Favorites ----------- Power Light Nuclear Core Engine Ion Engine Power Core Light Nuclear Core Propulsion Light Treads Treads Light Treads Wheel Wheel Utility Improved Heat Sink Device Improved Heat Sink Storage Large Storage Unit Processor Modified TNC Weapon Spread Laser Energy Gun Spread Laser Ballistic Gun Assault Rifle Launcher Grenade Launcher Slashing Weapon Katana Build | -11 -10 -10 -10 -9 ------- Run | Scr Mat Min Exi Min Slots Evolved . | . . . . . Power . | . . . . . Propulsion . | . . . . . Utility . | . . . . . Weapon . | . . . . . Parts Attached 70 | 8 42 9 2 9 Power 3 | 1 1 1 . . Engine 2 | 1 . 1 . . Core 1 | . 1 . . . Reactor . | . . . . . Propulsion 20 | 2 9 5 . 4 Treads 10 | 1 5 2 . 2 Leg . | . . . . . Wheel 10 | 1 4 3 . 2 Hover . | . . . . . Flight . | . . . . . Utility 12 | 2 8 . 2 . Device 2 | . 2 . . . Storage 9 | 2 6 . 1 . Processor 1 | . . . 1 . Hackware . | . . . . . Protection . | . . . . . Artifact . | . . . . . Weapon 35 | 3 24 3 . 5 Energy Gun 24 | 2 18 2 . 2 Energy Cannon . | . . . . . Ballistic Gun 7 | 1 4 1 . 1 Ballistic Cannon . | . . . . . Launcher 3 | . 2 . . 1 Special Weapon . | . . . . . Impact Weapon . | . . . . . Slashing Weapon 1 | . . . . 1 Piercing Weapon . | . . . . . Special Melee Weapon . | . . . . . Unidentified Prototypes 1 | . . . 1 . Parts Lost 10 | . 1 1 . 8 Power 1 | . . . . 1 Propulsion 3 | . . . . 3 Utility . | . . . . . Weapon 6 | . 1 1 . 4 Highest Loss Streak 8 | . 1 1 . 8 Average Slot Usage (%) 99 | . 99 99 100 94 Engine 6 | . . 8 14 11 Core 7 | . 13 5 . . Treads 16 | . 18 15 14 20 Wheel 11 | . 10 12 14 6 Device 10 | . 10 14 11 . Storage 15 | . 17 14 14 14 Processor 1 | . . . 2 14 Energy Gun 18 | . 21 18 14 13 Ballistic Gun 6 | . 1 9 14 9 Launcher 2 | . 4 . . 2 Naked Turns . | . . . . . Heaviest Build 44 | 17 33 28 43 44 Greatest Support 40 | 20 40 40 20 40 Greatest Overweight (x) 4 | 1 3 2 4 4 Average Overweight (x) 2 | . 1 1 3 1 Largest Inventory Capacity 16 | 8 16 10 12 12 Average Capacity 10 | 6 10 10 11 12 Most Carried 12 | 4 12 10 12 12 Average Carried 9 | 2 9 9 10 11 Final Capacity 12 | 8 10 10 12 12 Final Carried 12 | 4 10 10 12 7 Class Distribution -------------------- 97% | Mutant Dominant Class ---------------- Mutant | -10/Materials Mutant | -10/Mines Mutant | -10/Exiles Mutant | -9/Mines Resources | -11 -10 -10 -10 -9 ----------- Run | Scr Mat Min Exi Min Matter Collected 1064 | 257 587 109 20 91 Remotely . | . . . . . Salvage Created 1289 | 60 803 123 . 303 Parts 68 | 3 40 10 . 15 Haulers Intercepted 2 | . 2 . . . Recyclers Shooed 2 | . 2 . . . Parts Field Recycled . | . . . . . Retrieved Matter . | . . . . . Parts Self-Destructed . | . . . . . Prevented . | . . . . . Kills | -11 -10 -10 -10 -9 ------- Run | Scr Mat Min Exi Min Combat Hostiles Destroyed 24 | . 14 6 . 4 Guns 22 | . 14 6 . 2 AOE 2 | . . . . 2 Classes Destroyed 9 | 1 5 . . 3 Worker 2 | . . . . 2 Builder 1 | . . . . 1 Hauler 2 | . 2 . . . Recycler 5 | 1 2 . . 2 Operator 1 | . 1 . . . Watcher 3 | . 3 . . . Swarmer 9 | . 6 3 . . Grunt 14 | . 8 3 . 3 Duelist 1 | . . . . 1 Best Kill Streak 5 | 1 5 3 . 4 Combat Bots Only 5 | . 5 3 . 2 Max Kills in Single Turn 3 | 1 1 2 . 3 Gunslinging 1 | . . 1 . . Exploded 1 | . . . . 1 Melee . | . . . . . Uniques/NPCs Destroyed . | . . . . . Combat | -11 -10 -10 -10 -9 -------- Run | Scr Mat Min Exi Min Damage Taken 1370 | . 447 226 . 697 Core 256 | . 65 27 . 164 Absorbed by Shields . | . . . . . Core Remaining (%) 100 | 100 . . . . Volleys Fired 93 | 4 66 13 . 10 Largest 2 | 2 2 2 . 2 Hottest 121 | 80 121 121 . 85 Shots Fired 176 | 8 127 26 . 15 Gun 168 | 8 124 26 . 10 Cannon . | . . . . . Launcher 8 | . 3 . . 5 Special . | . . . . . Kinetic 31 | 1 18 8 . 4 Thermal 101 | . 79 18 . 4 Explosive 8 | . 3 . . 5 Electromagnetic 36 | 7 27 . . 2 Robot Hit Streak 14 | 2 14 10 . 13 Robot Miss Streak 7 | 1 7 4 . 6 Penetration Max . | . . . . . Secondary Targets 2 | . 1 1 . . Max Gunslinging Chain 1 | . 1 1 . . Shots Hit Robots 111 | 4 72 24 . 11 Core Hits 91 | 2 44 23 . 22 Critical Hits . | . . . . . Critical Kills . | . . . . . Critical Parts Destroyed . | . . . . . Melee Attacks 5 | . . . . 5 Impact . | . . . . . Slashing 5 | . . . . 5 Piercing . | . . . . . Sneak Attacks . | . . . . . Combat Hostiles . | . . . . . Follow-up Attacks . | . . . . . Damage Inflicted 1823 | 73 857 236 . 657 Guns 1249 | 73 822 236 . 118 Cannons . | . . . . . Explosions 473 | . 33 . . 440 Melee 99 | . . . . 99 Ramming 2 | . 2 . . . Kinetic 192 | 8 106 52 . 26 Thermal 867 | . 606 184 . 77 Explosive 473 | . 33 . . 440 Electromagnetic 190 | 65 110 . . 15 Impact . | . . . . . Slashing 99 | . . . . 99 Piercing . | . . . . . Highest Corruption . | . . . . . Average Corruption . | . . . . . Corruption Purged . | . . . . . Overload Shots . | . . . . . Overflow Damage 5 | . . . . 5 Projectiles . | . . . . . Explosions 5 | . . . . 5 Melee . | . . . . . Knockbacks . | . . . . . Impact . | . . . . . Kinetic . | . . . . . Secondary . | . . . . . Self-Inflicted Damage 63 | . . . . 63 Shots 2 | . . . . 2 Rammed 1 | . 1 . . . Targets Rammed 1 | . 1 . . . Kicked . | . . . . . Crushed . | . . . . . Highest Temperature 180 | 54 180 165 . 126 Average Temperature 45 | 26 41 70 . 55 Received Heat Transfer 384 | . 177 87 . 120 Siege Activations . | . . . . . Robots Corrupted . | . . . . . Combat Hostiles . | . . . . . Parts Fried 1 | . 1 . . . Impact Corruptions . | . . . . . Robots Melted . | . . . . . Combat Hostiles . | . . . . . Parts Melted 5 | . 5 . . . Heat Transferred 1886 | . 1495 296 . 95 Parts Sabotaged . | . . . . . Parts Stolen . | . . . . . Parts Stripped . | . . . . . Power Chain Reactions . | . . . . . Missiles Intercepted . | . . . . . Alert | -11 -10 -10 -10 -9 ------- Run | Scr Mat Min Exi Min Peak Influence 195 | 5 195 164 . 170 Average Influence 69 | 2 89 32 . 77 Maximum Alert Level . | . . . . . Low Security (%) 100 | 100 100 100 . 100 Level 1 . | . . . . . Level 2 . | . . . . . Level 3 . | . . . . . Level 4 . | . . . . . Level 5 . | . . . . . High Security . | . . . . . Max Security . | . . . . . Squads Dispatched 3 | . 1 1 . 1 Investigation . | . . . . . Extermination . | . . . . . Reinforcement 2 | . 1 . . 1 Assault 1 | . . 1 . . Garrison . | . . . . . Intercept . | . . . . . Construction Impeded 1 | . . . . 1 Haulers Reinforced . | . . . . . Stealth | -11 -10 -10 -10 -9 --------- Run | Scr Mat Min Exi Min Distress Signals 1 | . . . . 1 Communications Jammed . | . . . . . Distress Signals . | . . . . . Times Spotted 51 | . 32 11 . 8 Peak Tracking Total 6 | . 6 4 . 4 Tactical Retreats 2 | . 1 1 . . Traps | -11 -10 -10 -10 -9 ------- Run | Scr Mat Min Exi Min Traps Triggered . | . . . . . Indirectly . | . . . . . Trap Hack Attempts . | . . . . . Triggered . | . . . . . Disarmed . | . . . . . Reprogrammed . | . . . . . Reused . | . . . . . Traps Extracted . | . . . . . Installed . | . . . . . Triggered . | . . . . . Exploded 1 | . . . 1 . Machines | -11 -10 -10 -10 -9 ---------- Run | Scr Mat Min Exi Min Machines Disabled 4 | . 1 . . 3 Max in Single Turn 2 | . 1 . . 2 Machines Sabotaged . | . . . . . Garrisons Compromised . | . . . . . Overloaded Fab Kills . | . . . . . Fab Network Shutdowns . | . . . . . Hacking | -11 -10 -10 -10 -9 --------- Run | Scr Mat Min Exi Min Machines Accessed 12 | . 9 . 3 . Terminals 7 | . 7 . . . Fabricators . | . . . . . Repair Stations 1 | . 1 . . . Recycling Units 1 | . 1 . . . Scanalyzers . | . . . . . Garrison Access . | . . . . . Total Hacks 47 | . 26 . 21 . Successful 35 | . 14 . 21 . Failed 12 | . 12 . . . Catastrophic . | . . . . . Database Lockouts . | . . . . . Manual 12 | . 11 . 1 . Terminals 21 | . 21 . . . Fabricators . | . . . . . Repair Stations 2 | . 2 . . . Recycling Units 3 | . 3 . . . Scanalyzers . | . . . . . Garrison Access . | . . . . . Terminal Hacks 27 | . 6 . 21 . Record 21 | . . . 21 . Terminal Index 1 | . 1 . . . Locate Traps 4 | . 4 . . . Hauler Manifests 1 | . 1 . . . Fabricator Hacks . | . . . . . Repair Station Hacks 2 | . 2 . . . Scan Component 1 | . 1 . . . Repair 1 | . 1 . . . Recycling Unit Hacks 2 | . 2 . . . Report Inventory 1 | . 1 . . . Retrieve Components 1 | . 1 . . . Scanalyzer . | . . . . . Garrison Access Hacks . | . . . . . Unauthorized Hacks 9 | . 9 . . . Terminals 4 | . 4 . . . Assimilate 1 | . 1 . . . Botnet 2 | . 2 . . . Operators 1 | . 1 . . . Fabricators . | . . . . . Repair Stations . | . . . . . Recycling Units . | . . . . . Scanalyzers . | . . . . . Garrison Access . | . . . . . Data Cores Recovered . | . . . . . Used . | . . . . . Hacking Detections 9 | . 9 . . . Full Trace Events . | . . . . . Feedback Events . | . . . . . Feedback Blocked . | . . . . . Robot Schematics Acquired . | . . . . . Robots Built . | . . . . . Matter . | . . . . . Time . | . . . . . Total Robot Build Rating . | . . . . . Part Schematics Acquired . | . . . . . Parts Built . | . . . . . Matter . | . . . . . Time . | . . . . . Total Part Build Rating . | . . . . . Parts Repaired 1 | . 1 . . . Time 38 | . 38 . . . Parts Recycled . | . . . . . Recycled Matter . | . . . . . Retrieved Matter . | . . . . . Retrieved Components 8 | . 8 . . . Parts Scanalyzed . | . . . . . Part Schematics Acquired . | . . . . . Parts Damaged . | . . . . . Bothacking | -11 -10 -10 -10 -9 ------------ Run | Scr Mat Min Exi Min Used RIF Installer . | . . . . . Robots Hacked . | . . . . . Non-combat . | . . . . . Combat . | . . . . . Robot Hacks Applied . | . . . . . Relay Couplers Released . | . . . . . Robots Rewired . | . . . . . Allies Hacked . | . . . . . Hacks Repelled . | . . . . . Allies | -11 -10 -10 -10 -9 -------- Run | Scr Mat Min Exi Min Total Allies 1 | . . 1 . . Largest Group 1 | . . 1 . . Highest-Rated Group 31 | . . 31 . . Highest-Rated Ally 31 | . . 31 . . Total Orders . | . . . . . Ally Attacks 13 | . . 13 . . Total Damage 212 | . . 212 . . Kills 2 | . . 2 . . Allies Corrupted . | . . . . . Allies Melted 1 | . . 1 . . Intel | -11 -10 -10 -10 -9 ------- Run | Scr Mat Min Exi Min Robot Analysis Total . | . . . . . Derelict Logs Recovered 3 | . . 3 . . Drone Launches . | . . . . . Drone Recoveries . | . . . . . Exploration | -11 -10 -10 -10 -9 ------------- Run | Scr Mat Min Exi Min Turns Passed 3693 | 111 1748 785 890 159 Spaces Moved 2423 | 64 1140 516 655 48 Core 3 | 3 . . . . Treads 779 | 31 319 250 144 35 Legs . | . . . . . Wheels 1641 | 30 821 266 511 13 Hover . | . . . . . Flight . | . . . . . Fastest Speed 50 | 50 90 100 120 110 Average Speed 128 | 121 119 138 133 166 Slowest Speed 200 | 160 180 180 200 200 Overloaded Moves . | . . . . . Propulsion Burnouts . | . . . . . Robots Hopped . | . . . . . Cave-ins Triggered . | . . . . . Exploration Rate (%) 61 | 4 92 99 94 18 Regions Visited 4 Branch Regions 3 Pre-discovered Areas 2 | . . 2 . . Known Exits Taken . | . . . . . Unknown Exits Taken 4 | 1 1 1 1 . Scrap Searched 1 | . . 1 . . Spaces Dug 11 | . 11 . . . Terrain Destroyed 46 | . 20 . . 26 Melee . | . . . . . Projectile . | . . . . . AOE 46 | . 20 . . 26 Actions | -11 -10 -10 -10 -9 --------- Run | Scr Mat Min Exi Min Total 2826 | 85 1401 562 673 105 Wait 179 | 6 115 17 10 31 Move 2419 | 63 1139 515 654 48 Hop . | . . . . . Pick Up 24 | 4 13 3 3 1 Fast Attach 16 | 7 7 1 1 . Attach 7 | . 1 1 . 5 Detach 4 | . 2 1 1 . Swap 47 | 1 34 7 1 4 Drop 31 | . 23 4 3 1 Fire 93 | 4 66 13 . 10 Melee 5 | . . . . 5 Ram . | . . . . . Kick . | . . . . . Crush 1 | . 1 . . . Escape Stasis . | . . . . . Rewire . | . . . . . Trap . | . . . . . Miscellaneous . | . . . . . Route ------- -11/Scrapyard -10/Materials (discovered 4 exits: [*Mat x3] / [*Min]) -10/Mines (discovered 3 exits: [*Mat x2] / *Exi) -10/Exiles (discovered 2 exits: [*Min x2]) -9/Mines History --------- Turn | Location | Event 14 | -11/Scrapyard | Discovered new exit (range 16) 112 | -11/Scrapyard | Entered Materials 312 | -10/Materials | Build established: Mutant 718 | -10/Materials | Discovered new exit (range 13) 962 | -10/Materials | Discovered new exit (range 6) 1083 | -10/Materials | Discovered new exit (range 8) 1503 | -10/Materials | Repaired Imp. Heat Sink 1636 | -10/Materials | Discovered new exit (range 16) 1860 | -10/Materials | Entered Mines 1995 | -10/Mines | Learned Materials garrison access intel 2076 | -10/Mines | Learned location of Mines (-9) 2080 | -10/Mines | Met a Derelict testing a Signal Generator 2087 | -10/Mines | Found Signal Generator 2299 | -10/Mines | Deemed a non-threat by the Exiles lab entrance 2299 | -10/Mines | Discovered new exit (range 5) 2504 | -10/Mines | Discovered new exit (range 11) 2549 | -10/Mines | Discovered new exit (range 7) 2554 | -10/Mines | Received a Rocket Launcher from a helpful Derelict 2645 | -10/Mines | Entered Exiles 2671 | -10/Exiles | Discovered new exit (range 15) 2728 | -10/Exiles | Met 8R-AWN 2775 | -10/Exiles | Met EX-HEX 2952 | -10/Exiles | Met EX-DEC 3016 | -10/Exiles | Visited The Gauntlet 3265 | -10/Exiles | Met EX-BIN 3323 | -10/Exiles | Aligned with FarCom system 3324 | -10/Exiles | Given EX-Vault access code 3368 | -10/Exiles | Opened EX-Vault 3378 | -10/Exiles | Found Prototype Processor 3378 | -10/Exiles | Identified Modified TNC 3404 | -10/Exiles | Warned to stay clear of 0b10 Research branches 3419 | -10/Exiles | Exiles lab attacked by MAIN.C 3520 | -10/Exiles | Discovered new exit (range 14) 3535 | -10/Exiles | Left Exiles lab with Modified TNC 3535 | -10/Exiles | Entered Mines 3662 | -9/Mines | Assembled infested the area 3674 | -9/Mines | Core integrity fell below 50% 3677 | -9/Mines | Core integrity fell below 20% 3694 | -9/Mines | Destroyed by G-34 Mercenary with Small Laser Last Messages --------------- 03665_ R-06 Scavenger destroyed. 03666_ U-05 Engineer lays Concrete. 03666_ C-30 ARC bursts open, deploying its payload. 03666_ D-53 Grenadier unfolds itself. 03668_ Spread Laser destroyed. 03669_ U-05 Engineer lays Concrete. 03669_ Ion Engine destroyed. 03670_ ALERT: Construction progress impeded, dispatching reinforcements to local area. 03670_ U-05 Engineer sends out distress signal. 03670_ EM Pulse Gun destroyed. 03672_ Lgt. Treads destroyed. 03674_ The unstable cave ceiling collapses. 03678_ Acquired 46 matter. 03679_ The unstable cave ceiling collapses. 03682_ Assault Rifle destroyed. 03685_ Wheel destroyed. 03688_ The unstable cave ceiling collapses. 03690_ Wheel destroyed. 03693_ The unstable cave ceiling collapses. Map ----- +----------------------------------------------------+ | | | | | | | | | | | ?????????????????????????????????????????????????? | | ?????????????????????????#####???????????????????? | | ???????###########?####### # ###?????????????????? | | ???????# !%= #?# #?????????????????? | | ???????# #?# % #?????????????????? | | ???????# """ %= #?# #?????????????????? | | ???????# """ #?# " ##????????????????? | | ???????# """ #?# " ?????????????????? | | ???????# #?# ##????????????????? | | ???????###### ####?# ####?????????????? | | ????????????# ####### ## ##????????????? | | ????????????# ## # # ##???????????? | | ????????????# ###?????????? | | ????????????#### ???????? | | ???????????????## #??????????? | | ????????????????### # ## ##??????????? | | ??????????????????## # #???##???????????? | | ???????????????????## # #?#????????????????? | | ????????????????????# = #??????????????????? | | ????????????????????## != ### ##???????????????? | | ?????????????????????####@ g #??????????????? | | ???????????????????????# d #### #??????????????? | | ?????????????????????? r % g #???????????????????? | | ????????????????????? #???????????????????? | | ????????????????????# ## =??????????????????? | | ????????????????????## ##? *?????????????????? | | ?????????????????????## ##?? ????????????????? | | ??????????????????????###????# * ???????????????? | | ?????????????????????????????? #??????????????? | | ??????????????????????????????? #??????????????? | | ???????????????????????????????? #??????????????? | | ??????????????????????????????????#??????????????? | | ?????????????????????????????????????????????????? | | ?????????????????????????????????????????????????? | | ?????????????????????????????????????????????????? | | ?????????????????????????????????????????????????? | | ?????????????????????????????????????????????????? | | ?????????????????????????????????????????????????? | | ?????????????????????????????????????????????????? | | ?????????????????????????????????????????????????? | | ?????????????????????????????????????????????????? | | ?????????????????????????????????????????????????? | | ?????????????????????????????????????????????????? | | ?????????????????????????????????????????????????? | | ?????????????????????????????????????????????????? | +----------------------------------------------------+ Best States ------------- Heat Dissipation 39 Energy Generation 14 Energy Capacity 250 Matter Stores 300 Matter Capacity 300 Sight Range 16 Terrain Scan Density 10 Evasion (%) 44 Recoil Reduction 2 Item Schematics ----------------- None Robot Schematics ------------------ None Fabricated ------------ Nothing Alien Tech Used ----------------- None Achievements -------------- None Challenges ------------ None Game ------ Seed LayeredDroneComputer Manual? 0 Play Time 00:49:23 Cumulative 30.2 hours Start 2020.03.05 @ 22:56:52 End 2020.03.05 @ 23:49:13 Sessions 1 Manual Loads 0 Difficulty Rogue Special Mode None Game No. 28 Rogue 28 Adventurer 0 Explorer 0 Win Type - Total 0 Types 0/0/0/0/0/0/0 Lore% 29 Gallery% 34 Achievement% 26 Wizard Run 0 Options --------- ASCII 0 Keyboard 1 Movement Vi Keybinds 0 Fullscreen 2 Font 18/SmallcapsGlow Map View 76x50 Tactical HUD 1 Map Filters NONE Filters NONE Steam 1 RUN: 0f1fbc91-138c-4fdc-b91d-25bcb6b77241